fUST/lending_fUST_20250911
["ID","MTS","AMOUNT","RATE_DAILY","PERIOD"]
[384848289,1757590248779,-480.0,0.00014794,2]
[384848290,1757590248789,-480.0,0.00014794,2]
[384848291,1757590248798,-151.0,0.00014794,2]
[384848292,1757590248807,-480.0,0.00014794,2]
[384848293,1757590248818,-151.0,0.00014794,2]
[384848294,1757590248827,-480.0,0.00014794,2]
[384848295,1757590248842,-151.0,0.00014794,2]
[384848296,1757590248852,-480.0,0.00014794,2]
[384848297,1757590248861,-480.0,0.00014794,2]
[384848298,1757590248871,-151.0,0.00014794,2]
[384848299,1757590248881,-480.0,0.00014794,2]
[384848300,1757590248891,-480.0,0.00014794,2]
[384848301,1757590248901,-3618.14,0.00014794,2]
[384848302,1757590248912,-480.0,0.00014794,2]
[384848303,1757590248922,-480.0,0.00014794,2]
[384848304,1757590248931,-480.0,0.00014794,2]
[384848305,1757590248940,-480.0,0.00014794,2]
[384848306,1757590248950,-151.0,0.00014794,2]
[384848307,1757590248959,-480.0,0.00014794,2]
[384848308,1757590248968,-151.0,0.00014794,2]
[384848309,1757590248978,-480.0,0.00014794,2]
[384848310,1757590248987,-151.0,0.00014794,2]
[384848311,1757590248997,-480.0,0.00014794,2]
[384848312,1757590249006,-480.0,0.00014794,2]
[384848313,1757590249015,-480.0,0.00014794,2]
[384848314,1757590249024,-480.0,0.00014794,2]
[384848315,1757590249034,-480.0,0.00014794,2]
[384848316,1757590249043,-152.519859,0.00014794,2]
[384848317,1757590249052,-480.0,0.00014794,2]
[384848318,1757590249062,-480.0,0.00014794,2]
[384848319,1757590249071,-480.0,0.00014794,2]
[384848320,1757590249080,-151.0,0.00014794,2]
[384848321,1757590249090,-480.0,0.00014794,2]
[384848322,1757590249100,-151.0,0.00014794,2]
[384848323,1757590249109,-480.0,0.00014794,2]
[384848324,1757590249119,-151.0,0.00014794,2]
[384848325,1757590249129,-480.0,0.00014794,2]
[384848326,1757590249138,-604.61344924,0.00014794,2]
[384848327,1757590249148,-480.0,0.00014794,2]
[384848328,1757590249158,-151.0,0.00014794,2]
[384848329,1757590249167,-480.0,0.00014794,2]
[384848330,1757590249177,-480.0,0.00014794,2]
[384848331,1757590249186,-168.0,0.00014794,2]
[384848332,1757590249196,-480.0,0.00014794,2]
[384848333,1757590249298,-480.0,0.00014794,2]
[384848334,1757590249308,-151.0,0.00014794,2]
[384848335,1757590249318,-805.62,0.00014794,2]
[384848336,1757590249328,-480.0,0.00014794,2]
[384848337,1757590249337,-480.0,0.00014794,2]
[384848338,1757590249347,-180.600102,0.00014794,2]
[384848339,1757590249356,-180.600102,0.00014794,2]
[384848340,1757590249365,-180.600102,0.00014794,2]
[384848341,1757590249375,-180.600102,0.00014794,2]
[384848342,1757590249385,-480.0,0.00014794,2]
[384848343,1757590249395,-480.0,0.00014794,2]
[384848344,1757590249404,-500.0,0.00014882,2]
[384848345,1757590249414,-420.0,0.00015009,2]
[384848346,1757590249424,-398.29,0.00015068,2]
[384848347,1757590249434,-400.28,0.00015068,2]
[384848348,1757590249443,-480.0,0.00015068,2]
[384848349,1757590249452,-480.0,0.00015068,2]
[384848350,1757590249462,-480.0,0.00015068,2]
[384848351,1757590249471,-480.0,0.00015068,2]
[384848352,1757590249480,-480.0,0.00015068,2]
[384848353,1757590249490,-480.0,0.00015068,2]
[384848354,1757590249499,-480.0,0.00015068,2]
[384848355,1757590249508,-480.0,0.00015068,2]
[384848356,1757590249518,-434.85021828,0.00015068,2]
[384848357,1757590249527,-151.0,0.00015068,2]
[384848358,1757590249537,-616.196084,0.00015068,2]
[384848359,1757590249546,-1155.98,0.00015068,2]
[384848360,1757590249556,-616.196084,0.00015068,2]
[384848361,1757590249565,-480.0,0.00015068,2]
[384848362,1757590249575,-616.196084,0.00015068,2]
[384848363,1757590249584,-616.196084,0.00015068,2]
[384848364,1757590249593,-151.918556,0.00015068,2]
[384848365,1757590249602,-1507.5,0.00015068,2]
[384848366,1757590249612,-151.0,0.00015068,2]
[384848367,1757590249622,-1398.09,0.00015068,2]
[384848368,1757590249631,-480.0,0.00015068,2]
[384848369,1757590249640,-480.0,0.00015068,2]
[384848370,1757590249649,-151.0,0.00015068,2]
[384848371,1757590249659,-480.0,0.00015068,2]
[384848372,1757590249669,-515.99,0.00015068,2]
[384848373,1757590249679,-662.94,0.00015068,2]
[384848374,1757590249689,-493.41,0.00015068,2]
[384848375,1757590249699,-480.0,0.00015068,2]
[384848376,1757590249709,-497.25,0.00015068,2]
[384848377,1757590249718,-586.16,0.00015068,2]
[384848378,1757590249728,-480.0,0.00015068,2]
[384848379,1757590249737,-480.0,0.00015068,2]
[384848380,1757590249747,-588.42,0.00015068,2]
[384848381,1757590249756,-230.36,0.00015068,2]
[384848382,1757590249765,-537.57,0.00015068,2]
[384848383,1757590249775,-299.24,0.00015068,2]
[384848384,1757590249783,-480.0,0.00015068,2]
[384848385,1757590249792,-480.0,0.00015068,2]
[384848386,1757590249801,-480.0,0.00015068,2]
[384848387,1757590249810,-3618.14,0.00015068,2]
[384848388,1757590249820,-480.0,0.00015068,2]
[384848389,1757590249829,-480.0,0.00015068,2]
[384848390,1757590249842,-480.0,0.00015068,2]
[384848391,1757590249851,-480.0,0.00015068,2]
[384848392,1757590249860,-480.0,0.00015068,2]
[384848393,1757590249869,-480.0,0.00015068,2]
[384848394,1757590249879,-480.0,0.00015068,2]
[384848395,1757590249889,-480.0,0.00015068,2]
[384848396,1757590249898,-480.0,0.00015068,2]
[384848397,1757590249907,-480.0,0.00015068,2]
[384848398,1757590249918,-470.7,0.00015068,2]
[384848399,1757590249928,-480.0,0.00015068,2]
[384848400,1757590249937,-480.0,0.00015068,2]
[384848401,1757590249946,-805.62,0.00015068,2]
[384848402,1757590249956,-480.0,0.00015068,2]
[384848403,1757590249966,-480.0,0.00015068,2]
[384848404,1757590249976,-480.0,0.00015068,2]
[384848405,1757590249986,-177.197461,0.00015068,2]
[384848406,1757590249996,-557.5,0.00015342,2]
[384848407,1757590250005,-480.0,0.00015342,2]
[384848408,1757590250015,-480.0,0.00015342,2]
[384848409,1757590250024,-480.0,0.00015342,2]
[384848410,1757590250033,-480.0,0.00015342,2]
[384848411,1757590250043,-574.26322636,0.00015342,2]
[384848412,1757590250052,-151.0,0.00015342,2]
[384848413,1757590250062,-480.0,0.00015342,2]
[384848414,1757590250072,-151.0,0.00015342,2]
[384848415,1757590250081,-187.61241,0.00015342,2]
[384848416,1757590250091,-187.61241,0.00015342,2]
[384848417,1757590250100,-187.61241,0.00015342,2]
[384848418,1757590250111,-187.61241,0.00015342,2]
[384848419,1757590250120,-151.0,0.00015342,2]
[384848420,1757590250129,-151.0,0.00015342,2]
[384848421,1757590250139,-151.0,0.00015342,2]
[384848422,1757590250148,-151.0,0.00015342,2]
[384848423,1757590250157,-1155.98,0.00015342,2]
[384848424,1757590250166,-480.0,0.00015342,2]
[384848425,1757590250175,-1507.5,0.00015342,2]
[384848426,1757590250184,-1398.09,0.00015342,2]
[384848427,1757590250192,-480.0,0.00015342,2]
[384848428,1757590250201,-480.0,0.00015342,2]
[384848429,1757590250210,-480.0,0.00015342,2]
[384848430,1757590250219,-515.99,0.00015342,2]
[384848431,1757590250228,-662.94,0.00015342,2]
[384848432,1757590250236,-480.0,0.00015342,2]
[384848433,1757590250247,-497.25,0.00015342,2]
[384848434,1757590250256,-586.16,0.00015342,2]
[384848435,1757590250265,-480.0,0.00015342,2]
[384848436,1757590250274,-480.0,0.00015342,2]
[384848437,1757590250282,-480.0,0.00015342,2]
[384848438,1757590250291,-476.59,0.00015342,2]
[384848439,1757590250301,-480.0,0.00015342,2]
[384848440,1757590250310,-3618.14,0.00015342,2]
[384848441,1757590250319,-480.0,0.00015342,2]
[384848442,1757590250328,-480.0,0.00015342,2]
[384848443,1757590250337,-480.0,0.00015342,2]
[384848444,1757590250347,-431.92,0.00015342,2]
[384848445,1757590250356,-480.0,0.00015342,2]
[384848446,1757590250365,-480.0,0.00015342,2]
[384848447,1757590250374,-480.0,0.00015342,2]
[384848448,1757590250383,-480.0,0.00015342,2]
[384848449,1757590250392,-480.0,0.00015342,2]
[384848450,1757590250401,-805.62,0.00015342,2]
[384848451,1757590250411,-480.0,0.00015342,2]
[384848452,1757590250421,-480.0,0.00015342,2]
[384848453,1757590250430,-480.0,0.00015342,2]
[384848454,1757590250440,-468.05,0.00015616,2]
[384848455,1757590250449,-480.0,0.00015616,2]
[384848456,1757590250458,-393.73,0.00015616,2]
[384848457,1757590250467,-480.0,0.00015616,2]
[384848458,1757590250477,-1155.98,0.00015616,2]
[384848459,1757590250486,-480.0,0.00015616,2]
[384848460,1757590250498,-1507.5,0.00015616,2]
[384848461,1757590250507,-1398.09,0.00015616,2]
[384848462,1757590250516,-20.29569944,0.00015616,2]
[384848463,1757590250656,-459.70430056,0.00015616,2]
[384848464,1757590250666,-480.0,0.00015616,2]
[384848465,1757590250676,-458.69,0.00015616,2]
[384848466,1757590250686,-515.99,0.00015616,2]
[384848467,1757590250695,-662.94,0.00015616,2]
[384848468,1757590250704,-480.0,0.00015616,2]
[384848469,1757590250714,-497.25,0.00015616,2]
[384848470,1757590250723,-237.90595485,0.00015616,2]
[384848471,1757590250734,-348.25404515,0.00015616,2]
[384848472,1757590250745,-625.70934844,0.00015616,2]
[384848473,1757590250754,-480.0,0.00015616,2]
[384848474,1757590250764,-480.0,0.00015616,2]
[384848475,1757590250773,-480.0,0.00015616,2]
[384848476,1757590250782,-3618.14,0.00015616,2]
[384848477,1757590250791,-480.0,0.00015616,2]
[384848478,1757590250801,-480.0,0.00015616,2]
[384848479,1757590250810,-480.0,0.00015616,2]
[384848480,1757590250819,-480.0,0.00015616,2]
[384848481,1757590250828,-480.0,0.00015616,2]
[384848482,1757590250841,-509.41,0.00015616,2]
[384848483,1757590250850,-480.0,0.00015616,2]
[384848484,1757590250860,-297.33,0.00015616,2]
[384848485,1757590250870,-805.62,0.00015616,2]
[384848486,1757590250881,-480.0,0.00015616,2]
[384848487,1757590250891,-480.0,0.00015616,2]
[384848488,1757590250902,-480.0,0.00015616,2]
[384848489,1757590250912,-176.83162092,0.00015872,2]
[384848490,1757590250921,-480.0,0.0001589,2]
[384848491,1757590250930,-480.0,0.0001589,2]
[384848492,1757590250939,-1155.98,0.0001589,2]
[384848493,1757590250948,-480.0,0.0001589,2]
[384848494,1757590250957,-1507.5,0.0001589,2]
[384848495,1757590250966,-1398.09,0.0001589,2]
[384848496,1757590250975,-480.0,0.0001589,2]
[384848497,1757590250983,-480.0,0.0001589,2]
[384848498,1757590250994,-515.99,0.0001589,2]
[384848499,1757590251003,-662.94,0.0001589,2]
[384848500,1757590251013,-480.0,0.0001589,2]
[384848501,1757590251022,-497.25,0.0001589,2]
[384848502,1757590251115,-586.16,0.0001589,2]
[384848503,1757590251125,-480.0,0.0001589,2]
[384848504,1757590251134,-480.0,0.0001589,2]
[384848505,1757590251144,-3618.14,0.0001589,2]
[384848506,1757590251154,-480.0,0.0001589,2]
[384848507,1757590251163,-174.5,0.0001589,2]
[384848508,1757590251173,-480.0,0.0001589,2]
[384848509,1757590251182,-480.0,0.0001589,2]
[384848510,1757590251191,-480.0,0.0001589,2]
[384848511,1757590251201,-480.0,0.0001589,2]
[384848512,1757590251210,-151.0,0.0001589,2]
[384848513,1757590251219,-805.62,0.0001589,2]
[384848514,1757590251229,-480.0,0.0001589,2]
[384848515,1757590251238,-480.0,0.0001589,2]
[384848516,1757590251247,-480.0,0.0001589,2]
[384848517,1757590251257,-151.0,0.00016164,2]
[384848518,1757590251266,-151.0,0.00016164,2]
[384848519,1757590251275,-151.0,0.00016164,2]
[384848520,1757590251285,-151.0,0.00016164,2]
[384848521,1757590251296,-151.0,0.00016164,2]
[384848522,1757590251305,-151.0,0.00016164,2]
[384848523,1757590251315,-151.0,0.00016164,2]
[384848524,1757590251324,-207.810134,0.00016164,2]
[384848525,1757590251333,-207.810134,0.00016164,2]
[384848526,1757590251342,-207.810134,0.00016164,2]
[384848527,1757590251351,-207.810134,0.00016164,2]
[384848528,1757590251361,-151.0,0.00016164,2]
[384848529,1757590251370,-151.0,0.00016164,2]
[384848530,1757590251379,-151.0,0.00016164,2]
[384848531,1757590251388,-480.0,0.00016164,2]
[384848532,1757590251397,-151.0,0.00016164,2]
[384848533,1757590251408,-151.0,0.00016164,2]
[384848534,1757590251417,-151.0,0.00016164,2]
[384848535,1757590251426,-151.0,0.00016164,2]
[384848536,1757590251436,-151.0,0.00016164,2]
[384848537,1757590251445,-151.0,0.00016164,2]
[384848538,1757590251454,-151.0,0.00016164,2]
[384848539,1757590251463,-151.0,0.00016164,2]
[384848540,1757590251472,-214.21,0.00016164,2]
[384848541,1757590251482,-1155.98,0.00016164,2]
[384848542,1757590251491,-480.0,0.00016164,2]
[384848543,1757590251500,-1507.5,0.00016164,2]
[384848544,1757590251510,-1398.09,0.00016164,2]
[384848545,1757590251519,-480.0,0.00016164,2]
[384848546,1757590251529,-480.0,0.00016164,2]
[384848547,1757590251539,-515.99,0.00016164,2]
[384848548,1757590251548,-662.94,0.00016164,2]
[384848549,1757590251558,-480.0,0.00016164,2]
[384848550,1757590251567,-497.25,0.00016164,2]
[384848551,1757590251576,-586.16,0.00016164,2]
[384848552,1757590251585,-151.0,0.00016164,2]
[384848553,1757590251595,-151.0,0.00016164,2]
[384848554,1757590251604,-151.0,0.00016164,2]
[384848555,1757590251613,-151.0,0.00016164,2]
[384848556,1757590251623,-151.0,0.00016164,2]
[384848557,1757590251632,-273.791459,0.00016164,2]
[384848558,1757590251642,-151.0,0.00016164,2]
[384848559,1757590251652,-190.649492,0.00016164,2]
[384848560,1757590251661,-190.649492,0.00016164,2]
[384848561,1757590251670,-190.649492,0.00016164,2]
[384848562,1757590251680,-190.649492,0.00016164,2]
[384848563,1757590251690,-480.0,0.00016164,2]
[384848564,1757590251702,-151.0,0.00016164,2]
[384848565,1757590251712,-480.0,0.00016164,2]
[384848566,1757590251722,-151.0,0.00016164,2]
[384848567,1757590251732,-151.0,0.00016164,2]
[384848568,1757590251742,-151.0,0.00016164,2]
[384848569,1757590251751,-3618.14,0.00016164,2]
[384848570,1757590251760,-206.1832343,0.00016164,2]
[384848571,1757590251770,-480.0,0.00016164,2]
[384848572,1757590251780,-151.0,0.00016164,2]
[384848573,1757590251791,-151.0,0.00016164,2]
[384848574,1757590251801,-151.0,0.00016164,2]
[384848575,1757590251811,-512.28,0.00016164,2]
[384848576,1757590251821,-374.51,0.00016164,2]
[384848577,1757590251831,-151.0,0.00016164,2]
[384848578,1757590251845,-480.0,0.00016164,2]
[384848579,1757590251854,-151.0,0.00016164,2]
[384848580,1757590251863,-151.0,0.00016164,2]
[384848581,1757590251872,-805.62,0.00016164,2]
[384848582,1757590251883,-480.0,0.00016164,2]
[384848583,1757590251891,-180.600102,0.00016164,2]
[384848584,1757590251902,-581.07,0.00016164,2]
[384848585,1757590251911,-180.600102,0.00016164,2]
[384848586,1757590251921,-180.600102,0.00016164,2]
[384848587,1757590251930,-180.600102,0.00016164,2]
[384848588,1757590251940,-281.43,0.00016164,2]
[384848589,1757590251949,-534.21,0.00016438,2]
[384848590,1757590251958,-182.593598,0.00016438,2]
[384848591,1757590251968,-182.593598,0.00016438,2]
[384848592,1757590251976,-182.593598,0.00016438,2]
[384848593,1757590251986,-182.593598,0.00016438,2]
[384848594,1757590251995,-151.0,0.00016438,2]
[384848595,1757590252004,-151.0,0.00016438,2]
[384848596,1757590252014,-151.0,0.00016438,2]
[384848597,1757590252023,-151.0,0.00016438,2]
[384848598,1757590252032,-151.0,0.00016438,2]
[384848599,1757590252042,-1155.98,0.00016438,2]
[384848600,1757590252051,-480.0,0.00016438,2]
[384848601,1757590252060,-1507.5,0.00016438,2]
[384848602,1757590252069,-1398.09,0.00016438,2]
[384848603,1757590252078,-256.88,0.00016438,2]
[384848604,1757590252087,-480.0,0.00016438,2]
[384848605,1757590252097,-515.99,0.00016438,2]
[384848606,1757590252107,-662.94,0.00016438,2]
[384848607,1757590252116,-480.0,0.00016438,2]
[384848608,1757590252126,-497.25,0.00016438,2]
[384848609,1757590252135,-586.16,0.00016438,2]
[384848610,1757590252144,-480.0,0.00016438,2]
[384848611,1757590252153,-480.0,0.00016438,2]
[384848612,1757590252163,-3618.14,0.00016438,2]
[384848613,1757590252172,-480.0,0.00016438,2]
[384848614,1757590252182,-480.0,0.00016438,2]
[384848615,1757590252191,-805.62,0.00016438,2]
[384848616,1757590252201,-480.0,0.00016438,2]
[384848617,1757590252210,-587.0,0.00016449,2]
[384848618,1757590252219,-151.0,0.00016712,2]
[384848619,1757590252228,-264.990254,0.00016712,2]
[384848620,1757590252238,-151.0,0.00016712,2]
[384848621,1757590252247,-151.0,0.00016712,2]
[384848622,1757590252257,-151.0,0.00016712,2]
[384848623,1757590252266,-151.0,0.00016712,2]
[384848624,1757590252276,-151.0,0.00016712,2]
[384848625,1757590252285,-151.0,0.00016712,2]
[384848626,1757590252294,-1155.98,0.00016712,2]
[384848627,1757590252304,-480.0,0.00016712,2]
[384848628,1757590252313,-1507.5,0.00016712,2]
[384848629,1757590252322,-1398.09,0.00016712,2]
[384848630,1757590252331,-480.0,0.00016712,2]
[384848631,1757590252340,-515.99,0.00016712,2]
[384848632,1757590252350,-416.014268,0.00016712,2]
[384848633,1757590252359,-662.94,0.00016712,2]
[384848634,1757590252368,-416.014268,0.00016712,2]
[384848635,1757590252378,-416.014268,0.00016712,2]
[384848636,1757590252388,-359.608805,0.00016712,2]
[384848637,1757590252397,-416.014268,0.00016712,2]
[384848638,1757590252407,-151.0,0.00016712,2]
[384848639,1757590252416,-359.608805,0.00016712,2]
[384848640,1757590252425,-359.608805,0.00016712,2]
[384848641,1757590252434,-359.608805,0.00016712,2]
[384848642,1757590252444,-480.0,0.00016712,2]
[384848643,1757590252453,-497.25,0.00016712,2]
[384848644,1757590252462,-151.0,0.00016712,2]
[384848645,1757590252471,-362.316528,0.00016712,2]
[384848646,1757590252481,-362.316528,0.00016712,2]
[384848647,1757590252490,-586.16,0.00016712,2]
[384848648,1757590252499,-362.316528,0.00016712,2]
[384848649,1757590252508,-362.316528,0.00016712,2]
[384848650,1757590252517,-480.0,0.00016712,2]
[384848651,1757590252526,-480.0,0.00016712,2]
[384848652,1757590252535,-3618.14,0.00016712,2]
[384848653,1757590252544,-480.0,0.00016712,2]
[384848654,1757590252553,-480.0,0.00016712,2]
[384848655,1757590252562,-805.62,0.00016712,2]
[384848656,1757590252571,-480.0,0.00016712,2]
[384848657,1757590252580,-616.196084,0.00016986,2]
[384848658,1757590252589,-616.196084,0.00016986,2]
[384848659,1757590252598,-1155.98,0.00016986,2]
[384848660,1757590252607,-480.0,0.00016986,2]
[384848661,1757590252616,-616.196084,0.00016986,2]
[384848662,1757590252625,-616.196084,0.00016986,2]
[384848663,1757590252634,-1507.5,0.00016986,2]
[384848664,1757590252643,-151.0,0.00016986,2]
[384848665,1757590252652,-1398.09,0.00016986,2]
[384848666,1757590252661,-278.54,0.00016986,2]
[384848667,1757590252670,-151.0,0.00016986,2]
[384848668,1757590252679,-515.99,0.00016986,2]
[384848669,1757590252688,-662.94,0.00016986,2]
[384848670,1757590252697,-480.0,0.00016986,2]
[384848671,1757590252707,-497.25,0.00016986,2]
[384848672,1757590252716,-586.16,0.00016986,2]
[384848673,1757590252726,-480.0,0.00016986,2]
[384848674,1757590252735,-480.0,0.00016986,2]
[384848675,1757590252745,-3618.14,0.00016986,2]
[384848676,1757590252754,-480.0,0.00016986,2]
[384848677,1757590252763,-480.0,0.00016986,2]
[384848678,1757590252772,-805.62,0.00016986,2]
[384848679,1757590252781,-480.0,0.00016986,2]
[384848680,1757590252791,-1155.98,0.0001726,2]
[384848681,1757590252800,-480.0,0.0001726,2]
[384848682,1757590252809,-1507.5,0.0001726,2]
[384848683,1757590252894,-1398.09,0.0001726,2]
[384848684,1757590252904,-515.99,0.0001726,2]
[384848685,1757590252914,-662.94,0.0001726,2]
[384848686,1757590252923,-480.0,0.0001726,2]
[384848687,1757590252933,-497.25,0.0001726,2]
[384848688,1757590252941,-586.16,0.0001726,2]
[384848689,1757590252950,-480.0,0.0001726,2]
[384848690,1757590252959,-480.0,0.0001726,2]
[384848691,1757590252968,-3618.14,0.0001726,2]
[384848692,1757590252978,-480.0,0.0001726,2]
[384848693,1757590252987,-480.0,0.0001726,2]
[384848694,1757590252996,-805.62,0.0001726,2]
[384848695,1757590253005,-480.0,0.0001726,2]
[384848696,1757590253014,-151.0,0.00017534,2]
[384848697,1757590253023,-151.0,0.00017534,2]
[384848698,1757590253033,-151.0,0.00017534,2]
[384848699,1757590253042,-187.61241,0.00017534,2]
[384848700,1757590253051,-187.61241,0.00017534,2]
[384848701,1757590253060,-187.61241,0.00017534,2]
[384848702,1757590253070,-187.61241,0.00017534,2]
[384848703,1757590253079,-151.0,0.00017534,2]
[384848704,1757590253088,-151.0,0.00017534,2]
[384848705,1757590253097,-196.955848,0.00017534,2]
[384848706,1757590253107,-1155.98,0.00017534,2]
[384848707,1757590253116,-480.0,0.00017534,2]
[384848708,1757590253125,-1507.5,0.00017534,2]
[384848709,1757590253134,-1398.09,0.00017534,2]
[384848710,1757590253144,-515.99,0.00017534,2]
[384848711,1757590253154,-662.94,0.00017534,2]
[384848712,1757590253163,-480.0,0.00017534,2]
[384848713,1757590253173,-497.25,0.00017534,2]
[384848714,1757590253182,-586.16,0.00017534,2]
[384848715,1757590253191,-480.0,0.00017534,2]
[384848716,1757590253200,-480.0,0.00017534,2]
[384848717,1757590253210,-3618.14,0.00017534,2]
[384848718,1757590253219,-480.0,0.00017534,2]
[384848719,1757590253228,-805.62,0.00017534,2]
[384848720,1757590253238,-480.0,0.00017534,2]
[384848721,1757590253247,-500.0,0.00017659,2]
[384848722,1757590253256,-1155.98,0.00017808,2]
[384848723,1757590253266,-480.0,0.00017808,2]
[384848724,1757590253275,-1507.5,0.00017808,2]
[384848725,1757590253287,-1398.09,0.00017808,2]
[384848726,1757590253299,-515.99,0.00017808,2]
[384848727,1757590253309,-662.94,0.00017808,2]
[384848728,1757590253318,-480.0,0.00017808,2]
[384848729,1757590253327,-497.25,0.00017808,2]
[384848730,1757590253337,-586.16,0.00017808,2]
[384848731,1757590253347,-340.25,0.00017808,2]
[384848732,1757590253357,-480.0,0.00017808,2]
[384848733,1757590253366,-3618.14,0.00017808,2]
[384848734,1757590253375,-480.0,0.00017808,2]
[384848735,1757590253384,-805.62,0.00017808,2]
[384848736,1757590253393,-480.0,0.00017808,2]
[384848737,1757590253403,-151.0,0.0001786,2]
[384848738,1757590253412,-151.0,0.0001786,2]
[384848739,1757590253421,-261.56817271,0.0001786,2]
[384848740,1757590253431,-2030.296672,0.0001786,2]
[384848741,1757590253440,-500.0,0.0001786,2]
[384848742,1757590253449,-500.0,0.0001786,2]
[384848743,1757590253458,-500.0,0.0001786,2]
[384848744,1757590253467,-500.0,0.0001786,2]
[384848745,1757590253476,-500.0,0.0001786,2]
[384848746,1757590253485,-500.0,0.0001786,2]
[384848747,1757590253494,-437.12397696,0.0001786,2]
[384848748,1757590253503,-176.83162092,0.00017871,2]
[384848749,1757590253512,-2727.5972392,0.00017885,2]
[384848750,1757590253522,-151.0,0.00017893,2]
[384848751,1757590253531,-976.0,0.00017893,2]
[384848752,1757590253540,-634.0,0.00017893,2]
[384848753,1757590253549,-2155.0,0.00017893,2]
[384848754,1757590253558,-409.0,0.00017893,2]
[384848755,1757590253567,-823.0,0.00018026,2]
[384848756,1757590253576,-1155.98,0.00018082,2]
[384848757,1757590253585,-294.91,0.00018082,2]
[384848758,1757590253594,-1507.5,0.00018082,2]
[384848759,1757590253605,-1398.09,0.00018082,2]
[384848760,1757590253614,-515.99,0.00018082,2]
[384848761,1757590253623,-662.94,0.00018082,2]
[384848762,1757590253632,-480.0,0.00018082,2]
[384848763,1757590253641,-497.25,0.00018082,2]
[384848764,1757590253650,-586.16,0.00018082,2]
[384848765,1757590253659,-480.0,0.00018082,2]
[384848766,1757590253669,-151.0,0.00018082,2]
[384848767,1757590253678,-151.0,0.00018082,2]
[384848768,1757590253687,-3618.14,0.00018082,2]
[384848769,1757590253697,-151.0,0.00018082,2]
[384848770,1757590253706,-151.0,0.00018082,2]
[384848771,1757590253715,-151.0,0.00018082,2]
[384848772,1757590253725,-151.0,0.00018082,2]
[384848773,1757590253734,-151.0,0.00018082,2]
[384848774,1757590253743,-480.0,0.00018082,2]
[384848775,1757590253752,-805.62,0.00018082,2]
[384848776,1757590253761,-180.600102,0.00018082,2]
[384848777,1757590253770,-480.0,0.00018082,2]
[384848778,1757590253780,-180.600102,0.00018082,2]
[384848779,1757590253789,-180.600102,0.00018082,2]
[384848780,1757590253799,-180.600102,0.00018082,2]
[384848781,1757590253808,-1000.0,0.00018207,2]
[384848782,1757590253817,-250.0,0.00018307,2]
[384848783,1757590253826,-1155.98,0.00018356,2]
[384848784,1757590253838,-1507.5,0.00018356,2]
[384848785,1757590253847,-1398.09,0.00018356,2]
[384848786,1757590253857,-515.99,0.00018356,2]
[384848787,1757590253866,-662.94,0.00018356,2]
[384848788,1757590253875,-480.0,0.00018356,2]